[Event "36th Belgrade Trophy 2023"]
[Site "Belgrade"]
[Date "2023.11.28"]
[Round "4.13"]
[White "Marjanovic, Ivan D"]
[Black "Zubova, Mariya"]
[Result "0-1"]
[ECO "C22"]
[WhiteElo "2057"]
[BlackElo "2157"]
[Annotator "NA RC"]
[PlyCount "64"]
[EventDate "2023.10.23"]
[EventType "swiss"]
[EventCountry "SRB"]
[SourceTitle "playchess.com"]
[Source "ChessBase"]
[SourceQuality "1"]
[TimeControl "40/5400+30:900+30"]

1. e4 {[%emt 0:00:03]} e5 {[%emt 0:03:46]} 2. d4 {[%emt 0:00:07]} exd4 {[%emt 0:00:34]} 3. Qxd4 {[%emt 0:00:08]} Nc6 {[%emt 0:00:29]} 4. Qe3 {[%emt 0:00:06]} d6 {[%emt 0:00:49]} 5. Nc3 {[%emt 0:00:35]} Nf6 {[%emt 0:01:40]} 6. Bd2 {[%emt 0:00:44]} g6 {[%emt 0:04:05]} 7. h4 {[%emt 0:03:28]} Bg7 {[%emt 0:02:29]} 8. f3 {[%emt 0:01:57]} h5 {[%emt 0:05:38]} 9. Bc4 {[%emt 0:00:32]} Qe7 {[%emt 0:04:03]} 10. Nh3 {[%emt 0:04:14]} Bxh3 {[%emt 0:10:58]} 11. Rxh3 {[%emt 0:00:38]} Ne5 {[%emt 0:04:04]} 12. Bb3 {[%emt 0:00:54]} Bh6 {[%emt 0:00:21]} 13. Qf2 {[%emt 0:00:49]} Bxd2+ {[%emt 0:03:23]} 14. Qxd2 {[%emt 0:00:35]} O-O-O {[%emt 0:00:08]} 15. O-O-O {[%emt 0:00:13]} Kb8 {[%emt 0:03:31]} 16. Qg5 {[%emt 0:03:11]} Rhe8 {[%emt 0:01:55]} 17. f4 {[%emt 0:06:34]} Neg4 {[%emt 0:02:01]} 18. Rf3 {[%emt 0:00:43]} Qd7 {[%emt 0:06:57]} 19. f5 {[%emt 0:20:33]} Re5 {[%emt 0:04:15]} 20. Qf4 {[%emt 0:01:54]} gxf5 {[%emt 0:39:24]} 21. exf5 {[%emt 0:00:42]} Rde8 {[%emt 0:00:00]} 22. Nd5 {[%emt 0:09:01]} Nxd5 {[%emt 0:00:00]} 23. Rxd5 {[%emt 0:02:23]} Re1+ {[%emt 0:00:00]} 24. Rd1 {[%emt 0:00:39]} Qe7 {[%emt 0:00:00]} 25. Rf1 {[%emt 0:00:57]} Re4 {[%emt 0:00:00]} 26. f6 {[%emt 0:02:58]} Qf8 {[%emt 0:00:00]} 27. Qg5 {[%emt 0:05:25]} Ne3 {[%emt 0:00:00]} 28. Qxh5 {[%emt 0:00:14]} Nxf1 {[%emt 0:00:00]} 29. Rxf1 {[%emt 0:01:10]} R8e5 {[%emt 0:00:00]} 30. Rf5 {[%emt 0:09:03]} Rxf5 {[%emt 0:00:00]} 31. Qxf5 {[%emt 0:00:11]} Qh6+ {[%emt 0:00:00]} 32. Qg5 {[%emt 0:03:21]} Rxh4 {[%emt 0:00:00]} 0-1

[Event "36th Belgrade Trophy 2023"]
[Site "Belgrade"]
[Date "2023.11.28"]
[Round "4.14"]
[White "Savic, Nemanja"]
[Black "Sovetbekova, Nurai"]
[Result "1/2-1/2"]
[ECO "B52"]
[WhiteElo "2136"]
[BlackElo "1801"]
[Annotator "NA RC"]
[PlyCount "77"]
[EventDate "2023.10.23"]
[EventType "swiss"]
[EventCountry "SRB"]
[SourceTitle "playchess.com"]
[Source "ChessBase"]
[SourceQuality "1"]
[TimeControl "40/5400+30:900+30"]

1. e4 {[%emt 1:31:00]} c5 {[%emt 0:00:00]} 2. Nf3 d6 {[%emt 0:00:01]} 3. Bb5+ Bd7 {[%emt 0:00:06]} 4. Bxd7+ Qxd7 {[%emt 0:00:11]} 5. c4 Nf6 {[%emt 1:32:42]} 6. Nc3 {[%emt 0:02:30]} g6 {[%emt 0:00:30]} 7. d4 {[%emt 0:00:30]} cxd4 {[%emt 0:00:00]} 8. Nxd4 Bg7 {[%emt 0:00:00]} 9. f3 O-O {[%emt 0:00:00]} 10. Be3 Nc6 {[%emt 0:02:00]} 11. O-O {[%emt 0:02:00]} a6 {[%emt 0:00:00]} 12. Qd3 Rfc8 {[%emt 0:01:00]} 13. b3 {[%emt 0:01:00]} b5 {[%emt 0:00:30]} 14. cxb5 {[%emt 0:00:30]} Ne5 {[%emt 0:00:30]} 15. Qd2 {[%emt 0:00:30]} d5 {[%emt 0:00:30]} 16. Nc6 {[%emt 0:00:30]} Nxc6 {[%emt 0:00:30]} 17. bxc6 {[%emt 0:00:30]} Rxc6 {[%emt 0:00:30]} 18. Nxd5 {[%emt 0:00:30]} Nxd5 {[%emt 0:00:30]} 19. exd5 {[%emt 0:00:30]} Rd6 {[%emt 0:00:30]} 20. Rad1 {[%emt 0:00:30]} Rd8 {[%emt 0:00:30]} 21. Bc5 {[%emt 0:00:30]} Rxd5 {[%emt 0:00:30]} 22. Qxd5 {[%emt 0:00:30]} Qxd5 {[%emt 0:00:30]} 23. Rxd5 {[%emt 0:00:00]} Rxd5 {[%emt 0:00:30]} 24. Be3 {[%emt 0:01:00]} f5 {[%emt 0:00:00]} 25. Kf2 Kf7 {[%emt 0:01:00]} 26. Rc1 {[%emt 0:01:00]} Rd6 {[%emt 0:00:30]} 27. Ke2 {[%emt 0:00:30]} Bf6 {[%emt 0:00:30]} 28. b4 {[%emt 0:00:00]} Ke8 {[%emt 0:00:00]} 29. a4 Bd4 {[%emt 0:00:00]} 30. Rd1 Bc3 {[%emt 0:01:30]} 31. Rxd6 {[%emt 0:02:00]} exd6 {[%emt 0:00:00]} 32. Bd2 Be5 {[%emt 0:01:00]} 33. f4 {[%emt 0:01:00]} Bf6 {[%emt 0:00:30]} 34. Kd3 {[%emt 0:00:30]} d5 {[%emt 0:00:00]} 35. Bc3 Be7 {[%emt 0:00:00]} 36. Kd4 Bf6+ {[%emt 0:00:00]} 37. Kd3 Be7 {[%emt 0:02:00]} 38. Kd4 {[%emt 0:02:00]} Bf6+ {[%emt 0:00:30]} 39. Kd3 {[%emt 0:00:30]} 1/2-1/2

[Event "36th Belgrade Trophy 2023"]
[Site "Belgrade"]
[Date "2023.11.28"]
[Round "4.15"]
[White "Carnic, Dejan"]
[Black "Trailovic, Aleksandar"]
[Result "1/2-1/2"]
[ECO "B15"]
[WhiteElo "1958"]
[BlackElo "2132"]
[Annotator "RC"]
[PlyCount "42"]
[EventDate "2023.10.23"]
[EventType "swiss"]
[EventCountry "SRB"]
[SourceTitle "playchess.com"]
[Source "ChessBase"]
[SourceQuality "1"]
[TimeControl "40/5400+30:900+30"]

1. e4 {[%emt 0:32:07]} c6 {[%emt 0:00:16]} 2. d4 {[%emt 0:01:12]} d5 {[%emt 0:00:15]} 3. Nc3 {[%emt 0:00:14]} dxe4 {[%emt 0:00:16]} 4. Nxe4 {[%emt 0:00:07]} Nf6 {[%emt 0:00:17]} 5. Nxf6+ {[%emt 0:04:57]} exf6 {[%emt 0:00:11]} 6. c3 {[%emt 0:00:46]} Bd6 {[%emt 0:00:36]} 7. Bd3 {[%emt 0:01:00]} Na6 {[%emt 0:00:40]} 8. Ne2 {[%emt 0:02:17]} Nc7 {[%emt 0:00:35]} 9. Bf4 {[%emt 0:05:09]} Nd5 {[%emt 0:05:24]} 10. Bxd6 {[%emt 0:04:10]} Qxd6 {[%emt 0:00:06]} 11. Qc2 {[%emt 0:11:47]} g6 {[%emt 0:05:14]} 12. O-O {[%emt 0:06:50]} h5 {[%emt 0:05:32]} 13. Rae1 {[%emt 0:08:40]} Kf8 {[%emt 0:01:58]} 14. a3 {[%emt 0:01:53]} Kg7 {[%emt 0:01:51]} 15. c4 {[%emt 0:03:00]} Nc7 {[%emt 0:08:54]} 16. Qc3 {[%emt 0:05:52]} Ne6 {[%emt 0:11:45]} 17. c5 {[%emt 0:07:30]} Qd8 {[%emt 0:00:47]} 18. f4 {[%emt 0:00:36]} Nc7 {[%emt 0:00:47]} 19. Bc4 {[%emt 0:00:50]} h4 {[%emt 0:01:06]} 20. Qb3 {[%emt 0:00:30]} Qd7 {[%emt 0:03:19]} 21. h3 {[%emt 0:00:32]} Re8 {[%emt 0:01:43]} 1/2-1/2

[Event "36th Belgrade Trophy 2023"]
[Site "Belgrade"]
[Date "2023.11.29"]
[Round "5.1"]
[White "Bryakin, Mikhail"]
[Black "Blagojevic, Dragisa"]
[Result "1/2-1/2"]
[ECO "D31"]
[WhiteElo "2478"]
[BlackElo "2438"]
[Annotator "TA"]
[PlyCount "39"]
[EventDate "2023.10.23"]
[EventType "swiss"]
[EventCountry "SRB"]
[SourceTitle "playchess.com"]
[Source "ChessBase"]
[SourceQuality "1"]
[TimeControl "40/5400+30:900+30"]

{[%evp 9,39,28,33,21,35,27,36,32,50,42,41,27,27,41,51,58,55,48,55,56,100,55,73,67,92,27,30,7,7,14,15,19]} 1. d4 {[%emt 0:09:35]} d5 {[%emt 0:00:02]} 2. c4 {[%emt 0:00:11]} e6 {[%emt 0:00:04]} 3. Nc3 {[%emt 0:00:31]} c6 {[%emt 0:00:08]} 4. e4 {[%emt 1:22:13]} Bb4 {[%emt 0:00:22]} 5. cxd5 {[%emt 0:00:30]} exd5 {[%emt 0:00:42]} 6. e5 {[%emt 0:00:00] D31: Queen's Gambit Declined: Semi-Slav without ...Nf6 (+ Marshall Gambit and Noteboom) and Exchange Variation lines without ...Nf6.} c5 {[%emt 1:32:12]} 7. a3 {[%emt 0:00:00]} Bxc3+ {[%emt 0:00:00]} 8. bxc3 {[%emt 0:00:00] White is slightly better.} Ne7 {[%emt 0:00:00]} 9. Nf3 {[%emt 0:02:00]} Nbc6 {[%emt 0:01:30]} 10. Bd3 {[%emt 0:00:00]} Bg4 {[%emt 0:00:30]} 11. O-O {[%emt 0:01:00]} Qd7 {[%emt 0:00:00] [#]} 12. Be2 $146 {[%emt 0:00:30]} ({Predecessor:} 12. dxc5 Bxf3 13. Qxf3 Nxe5 14. Qg3 Nxd3 15. Qxd3 O-O 16. Rb1 Rfc8 17. Qb5 Qxb5 18. Rxb5 {1-0 Zhukova,N (2328)-Kukelko,A (2312) Odessa-ch Region 2020 (9)}) 12... O-O {[%emt 0:00:00]} 13. h3 {[%emt 0:00:30]} Be6 {[%emt 0:01:30]} 14. dxc5 {[%emt 0:00:00]} Qc7 {[%emt 0:00:30]} 15. Bf4 {[%emt 0:01:00]} Ng6 {[%emt 0:00:00][%csl LRe5,LRf4]} 16. Bh2 {[%emt 0:00:00]} Qa5 {[%emt 0:01:00] [#]} 17. Qb3 {[%emt 0:01:00]} (17. Bd3 $1 $16) 17... Qxc5 $11 {[%emt 0:00:00]} 18. Qxb7 {[%emt 0:00:00]} Rab8 {[%emt 0:00:00]} 19. Qa6 {[%emt 0:01:00]} Rb3 {[%emt 0:01:30] [#]} 20. Nd4 $1 {[%emt 0:00:00] Weighted Error Value: White=0.11 (very precise) /Black=0.09 (flawless)} 1/2-1/2

[Event "36th Belgrade Trophy 2023"]
[Site "Belgrade"]
[Date "2023.11.29"]
[Round "5.2"]
[White "Nenezic, Marko"]
[Black "Martic, Ivan"]
[Result "1/2-1/2"]
[ECO "A81"]
[WhiteElo "2499"]
[BlackElo "2292"]
[Annotator "TA"]
[PlyCount "65"]
[EventDate "2023.10.23"]
[EventType "swiss"]
[EventCountry "SRB"]
[SourceTitle "playchess.com"]
[Source "ChessBase"]
[SourceQuality "1"]
[TimeControl "40/5400+30:900+30"]

{[%evp 11,65,24,19,14,20,0,-4,-15,0,-3,0,0,0,-33,0,-21,-15,-18,0,0,0,0,0,5,4,-85,0,0,0,0,0,0,0,0,0,0,0,0,0,0,0,0,0,0,0,0,0,0,0,0,0,0,0,0,0,0]} 1. d4 {[%emt 0:00:24]} f5 {[%emt 0:00:40]} 2. g3 {[%emt 0:01:05]} Nf6 {[%emt 0:00:12]} 3. Bg2 {[%emt 0:00:09]} g6 {[%emt 0:00:31]} 4. Nh3 {[%emt 0:00:57]} Bg7 {[%emt 0:00:45]} 5. Nf4 {[%emt 0:00:11]} Nc6 {[%emt 0:00:22]} 6. h4 {[%emt 0:02:29][%cal Bh2h4,Bh4h5][%mdl 32]} e5 {[%emt 0:00:27]} 7. dxe5 {[%emt 0:00:36] A81: Dutch Defence: 2 g3.} Nxe5 {[%emt 0:00:07]} 8. h5 {[%emt 0:03:27]} c6 {[%emt 0:00:34]} 9. c4 {[%emt 0:18:43]} Qe7 {[%emt 0:01:05]} 10. Qc2 {[%emt 0:13:59]} (10. h6 $5 Bf8 $8 11. b3 $11) 10... d6 {[%emt 0:00:41]} 11. Nc3 {[%emt 0:02:20]} Bd7 {[%emt 0:07:40] [#]} 12. b3 $146 {[%emt 0:06:14]} (12. h6 $5 Bf8 $8 13. Qb3 $11) ({Predecessor:} 12. hxg6 hxg6 13. Rxh8+ Bxh8 14. b3 O-O-O 15. Bb2 Be8 16. O-O-O Bg7 17. Kb1 g5 18. Nh3 Bg6 19. Ka1 g4 20. Nf4 Bh7 21. e3 Kb8 22. Nce2 Qd7 23. Bxe5 {1-0 Maksimenko,A (2430)-Todorovic,G (2400) YUG-chT2 Yugoslavia 1994 (10)}) 12... Nfg4 {[%emt 0:09:19]} 13. f3 {[%emt 0:05:51]} Nf6 {[%emt 0:01:13]} 14. Bb2 {[%emt 0:18:53]} O-O-O {[%emt 0:06:31]} 15. O-O-O {[%emt 0:00:51]} g5 {[%emt 0:05:14]} 16. Nd3 {[%emt 0:00:17]} h6 {[%emt 0:08:52]} 17. Nxe5 {[%emt 0:07:35]} dxe5 {[%emt 0:00:47]} 18. Bh3 {[%emt 0:00:57] [#]} (18. e4 $11) 18... Nxh5 {[%emt 0:11:31]} (18... e4 $1 $17) 19. Bxf5 $11 {[%emt 0:03:19] The position is equal.} Nxg3 {[%emt 0:01:34]} 20. Bxd7+ {[%emt 0:00:09]} Rxd7 {[%emt 0:00:05]} 21. Rh3 {[%emt 0:00:43]} Rxd1+ {[%emt 0:01:26][%mdl 64] Remove Defender} 22. Nxd1 {[%emt 0:00:05]} Qf7 {[%emt 0:04:39][%cal Oh8d8]} 23. Rxg3 {[%emt 0:03:16] [#] Hoping for Qe4.} Qf4+ {[%emt 0:00:07]} 24. e3 $1 {[%emt 0:01:08]} Qxg3 {[%emt 0:00:07]} 25. Qf5+ {[%emt 0:01:40]} Kb8 {[%emt 0:03:17] White must now prevent ...Rd8.} 26. Qf7 {[%emt 0:00:28]} Rd8 $1 {[%emt 0:02:00]} 27. Qxg7 {[%emt 0:00:07]} Rxd1+ {[%emt 0:10:33]} 28. Kxd1 {[%emt 0:00:07]} Qxf3+ {[%emt 0:00:09]} 29. Kc2 {[%emt 0:04:06]} Qe2+ {[%emt 0:01:19]} 30. Kb1 {[%emt 0:00:40]} Qd3+ {[%emt 0:00:26]} 31. Kc1 {[%emt 0:00:07]} Qxe3+ {[%emt 0:00:16]} 32. Kc2 {[%emt 0:00:12]} Qe2+ {[%emt 0:00:11]} 33. Kc1 {[%emt 0:00:13] An interesting draw.   Weighted Error Value: White=0.09 (flawless) /Black=0.07 (flawless)} 1/2-1/2

[Event "36th Belgrade Trophy 2023"]
[Site "Belgrade"]
[Date "2023.11.29"]
[Round "5.3"]
[White "Liu, Zexu"]
[Black "Stojanovic, Mihajlo"]
[Result "1/2-1/2"]
[ECO "E17"]
[WhiteElo "2286"]
[BlackElo "2490"]
[Annotator "TA"]
[PlyCount "59"]
[EventDate "2023.10.23"]
[EventType "swiss"]
[EventCountry "SRB"]
[SourceTitle "playchess.com"]
[Source "ChessBase"]
[SourceQuality "1"]
[TimeControl "40/5400+30:900+30"]

{[%evp 21,59,22,23,9,23,37,34,12,41,32,32,42,39,29,56,55,57,52,54,71,91,89,72,90,87,61,60,67,60,61,62,65,58,56,53,43,57,56,55,30]} 1. Nf3 {[%emt 0:01:13]} Nf6 {[%emt 0:00:06]} 2. c4 {[%emt 0:00:12]} b6 {[%emt 0:00:09]} 3. g3 {[%emt 0:00:21]} Bb7 {[%emt 0:00:09]} 4. Bg2 {[%emt 0:00:04]} e6 {[%emt 0:00:51]} 5. O-O {[%emt 0:00:19]} Be7 {[%emt 0:00:08]} 6. Nc3 {[%emt 0:00:57]} O-O {[%emt 0:00:09]} 7. Re1 {[%emt 0:00:34]} d5 {[%emt 0:00:21]} 8. cxd5 {[%emt 0:00:10]} exd5 {[%emt 0:00:40]} 9. d4 {[%emt 0:00:19]} c5 {[%emt 0:00:16]} 10. Bf4 {[%emt 0:01:32]} Na6 {[%emt 0:04:56][%cal Bb8a6,Ba6b4,Bb4c6][%mdl 32]} 11. Rc1 {[%emt 0:00:06]} Ne4 {[%emt 0:04:25]} 12. dxc5 {[%emt 0:00:17] E17: Queen's Indian: 4 g3 Bb7 5 Bg2 Be7.} (12. h4 {simplifies} Nxc3 13. bxc3 Nc7 14. e3) 12... Bxc5 {[%emt 0:12:27]} 13. Rf1 {[%emt 0:06:52]} Re8 {[%emt 0:20:35] [#]} 14. Be5 $146 {[%emt 0:10:05]} ({Predecessor:} 14. a3 Qf6 15. Na4 Bf8 16. Be3 Nac5 17. Bd4 Qe7 18. Re1 g6 19. Nc3 Rad8 20. e3 {1-0 Popov,V (2545)-Ulybin,M (2580) Bydgoszcz op-A 2001 (6)}) 14... Nb4 {[%emt 0:05:39]} 15. a3 {[%emt 1:14:59]} Nc6 {[%emt 0:47:09]} 16. Bf4 {[%emt 0:00:30]} Nxc3 {[%emt 0:00:00]} 17. Rxc3 {[%emt 0:00:30]} a5 {[%emt 0:01:00]} 18. Rd3 {[%emt 0:00:30]} Ne7 {[%emt 0:00:30]} 19. Re1 {[%emt 0:00:00]} Qc8 {[%emt 0:00:30]} 20. Be5 {[%emt 0:01:00]} Qc6 {[%emt 0:00:30]} 21. e3 {[%emt 0:00:00]} Rad8 {[%emt 0:00:00]} 22. Bc3 {[%emt 0:00:00] White is more active.} Qc8 {[%emt 0:01:00]} 23. Nd4 Ba6 {[%emt 0:00:00] White is slightly better.} 24. Rd2 {[%emt 0:00:00]} Bxa3 {[%emt 0:01:00][%mdl 64] [#] Deflection} 25. Bxa5 {[%emt 0:00:00]} bxa5 {[%emt 0:00:00]} 26. bxa3 {[%emt 0:00:00]} Qc3 {[%emt 0:01:00]} 27. Rc2 {[%emt 0:03:30]} Qxa3 {[%emt 0:00:00]} 28. Qa1 {[%emt 0:00:30]} Qxa1 {[%emt 0:00:00]} 29. Rxa1 {[%emt 0:00:00]} Bc4 {[%emt 0:00:00]} 30. Rxa5 {[%emt 0:01:00] Weighted Error Value: White=0.04 (flawless) /Black=0.05 (flawless)} (30. Bf1 $5 {[%cal Rf1c4]}) 1/2-1/2

[Event "36th Belgrade Trophy 2023"]
[Site "Belgrade"]
[Date "2023.11.29"]
[Round "5.4"]
[White "Djokic, Nenad"]
[Black "Kilic, Eray"]
[Result "0-1"]
[ECO "D39"]
[WhiteElo "2223"]
[BlackElo "2446"]
[Annotator "TA"]
[PlyCount "52"]
[EventDate "2023.10.23"]
[EventType "swiss"]
[EventCountry "SRB"]
[SourceTitle "playchess.com"]
[Source "ChessBase"]
[SourceQuality "1"]
[TimeControl "40/5400+30:900+30"]

{[%evp 11,52,18,48,38,29,24,33,30,28,24,43,40,50,0,24,-16,8,14,7,-179,-189,-167,-177,-188,-164,-174,-167,-175,-162,-266,-270,-302,-158,-352,-336,-1007,-1003,-5014,-1548,-29996,-29997,-29997,-29998]} 1. d4 {[%emt 0:00:06]} Nf6 {[%emt 0:00:03]} 2. Nf3 {[%emt 0:00:36]} d5 {[%emt 0:00:05]} 3. c4 {[%emt 0:00:16]} e6 {[%emt 0:00:03]} 4. Nc3 {[%emt 0:00:23]} Bb4 {[%emt 0:00:05]} 5. Bg5 {[%emt 0:01:21]} dxc4 {[%emt 0:00:10]} 6. e4 {[%emt 0:00:42][%cal Be2e4,Be4e5,Be5f6,Bf6g7][%mdl 32]} b5 {[%emt 0:00:03]} 7. e5 {[%emt 0:00:25] D39: Queen's Gambit Declined: Ragozin Defence with 5 Bg5 dxc4.} h6 $1 {[%emt 0:00:03]} 8. exf6 {[%emt 0:00:19]} (8. Bh4 $5 {[%cal Re5f6]} g5 9. Nxg5 hxg5 10. Bxg5 $11 {[%mdl 64] Pin}) 8... hxg5 {[%emt 0:00:09]} 9. fxg7 {[%emt 0:00:07] White is slightly better.} Rg8 {[%emt 0:00:09]} 10. a4 {[%emt 0:01:56]} Nd7 {[%emt 0:20:44]} 11. axb5 {[%emt 0:02:08]} Bb7 {[%emt 0:00:04] [#]} 12. h4 $146 {[%emt 0:12:55]} (12. Nd2 $14) ({Predecessor:} 12. Bxc4 g4 13. Ne5 Nxe5 14. dxe5 Qg5 15. O-O Rxg7 16. Qd4 Qh6 17. Ne4 Be7 18. Nf6+ {1-0 Parligras,M (2645)-Visakh,N (2489) ROM-chT Sovata 2018 (5.1)}) 12... g4 {[%emt 0:06:43]} 13. Ne5 {[%emt 0:02:52]} Nxe5 {[%emt 0:10:07]} 14. dxe5 {[%emt 0:00:22]} Qd5 {[%emt 0:00:50] Dancing on a razor blade.} 15. Qe2 {[%emt 0:11:48] [#]} (15. Qxg4 $2 {loses.} Bxc3+ 16. bxc3 Qxe5+ 17. Qe2 Qxc3+ 18. Qd2 Qxa1+ $19) (15. Qxd5 $11 exd5 16. O-O-O) 15... Rxg7 $19 {[%emt 0:03:07]} 16. Rd1 {[%emt 0:08:16]} Qxb5 {[%emt 0:01:59]} 17. Rd2 {[%emt 0:13:37]} Qc5 {[%emt 0:07:07]} 18. Qxc4 {[%emt 0:11:40]} Qxe5+ {[%emt 0:00:06]} 19. Be2 {[%emt 0:01:55]} Bxc3 {[%emt 0:01:31]} 20. bxc3 {[%emt 0:00:05]} (20. Qxc3 {was worth a try.} Qxc3 21. bxc3) 20... Bxg2 {[%emt 0:01:01]} 21. Rg1 {[%emt 0:00:19]} Bd5 {[%emt 0:01:19]} (21... Qh2 $19 22. Rxg2 Qxg2 23. Qxc7 Qh1+ 24. Bf1 Qe4+ 25. Be2 Qb1+ 26. Bd1 (26. Rd1 $2 Qb6 $19) 26... Qb6) 22. Qc5 $2 {[%emt 0:04:35] This costs White the game.} (22. Qa4+ $17 {was forced.} Ke7 23. Qb4+ (23. c4 $2 Bf3 $19) 23... Qd6 24. Qd4) 22... Rb8 {[%emt 0:02:17] [#] ...Rb1+ would be deadly.} 23. Qa3 $2 {[%emt 0:07:00]} (23. Qd4 Qxd4 24. Rxd4) 23... g3 {[%emt 0:03:44] ( -> ...gxf2+)} 24. fxg3 {[%emt 0:05:58]} Rxg3 {[%emt 0:00:54]} 25. Rxg3 {[%emt 0:00:41]} Qxg3+ {[%emt 0:00:05]} 26. Kd1 {[%emt 0:00:07]} Qg1+ {[%emt 0:41:02] A cool game by Kilic.   Weighted Error Value: White=1.01/Black=0.17 (very precise)} 0-1

[Event "36th Belgrade Trophy 2023"]
[Site "Belgrade"]
[Date "2023.11.29"]
[Round "5.5"]
[White "Zubova, Mariya"]
[Black "Atalik, Suat"]
[Result "0-1"]
[ECO "C77"]
[WhiteElo "2157"]
[BlackElo "2427"]
[Annotator "TA"]
[PlyCount "80"]
[EventDate "2023.10.23"]
[EventType "swiss"]
[EventCountry "SRB"]
[SourceTitle "playchess.com"]
[Source "ChessBase"]
[SourceQuality "1"]
[TimeControl "40/5400+30:900+30"]

{[%evp 16,80,4,-7,16,5,4,9,18,23,18,0,0,-5,0,0,0,-22,-29,-31,-24,-37,-29,-50,-62,-137,-130,-172,-90,-90,-87,-100,-101,-103,-103,-116,-97,-111,-118,-114,-94,-98,-106,-104,0,-67,-50,-22,0,0,0,-155,-163,-151,-112,-125,0,-155,-145,-144,-125,-109,-120,-136,-126,-499,-478]} 1. e4 {[%emt 0:00:15]} e5 {[%emt 0:00:50]} 2. Nf3 {[%emt 0:00:11]} Nc6 {[%emt 0:00:20]} 3. Bb5 {[%emt 1:31:34][%cal Bf1b5,Bb5a4,Ba4b3,Bb3d5][%mdl 32]} a6 {[%emt 0:00:25]} 4. Ba4 {[%emt 0:00:00]} Nf6 {[%emt 0:00:32]} 5. Nc3 {[%emt 0:01:00]} b5 {[%emt 1:30:53]} 6. Bb3 {[%emt 0:00:30]} Be7 {[%emt 0:00:30]} 7. d3 {[%emt 0:00:00]} d6 {[%emt 0:00:00]} 8. a3 {[%emt 0:00:00]} O-O {[%emt 0:01:00]} 9. O-O {[%emt 0:01:30]} Qd7 {[%emt 0:00:30] 9...Na5 is a critical line. C77: Ruy Lopez: 3...a6 4 Ba4 Nf6, unusual lines.} 10. Nd5 {[%emt 0:00:00]} Nxd5 {[%emt 0:00:00]} 11. Bxd5 {[%emt 0:01:00]} Rb8 {[%emt 0:01:00] The position is equal.} 12. c3 {[%emt 0:00:30] [#]} Bf6 $146 {[%emt 0:00:30]} ({Predecessor:} 12... Nd8 13. d4 Bf6 14. Be3 Re8 15. dxe5 dxe5 16. Ba7 Rb7 17. Bxb7 Nxb7 18. Qxd7 Bxd7 {1-0 Wedberg,T (2455)-Persson,A (2155) SWE-chT 1718 Superettan 2017 (5)}) 13. d4 {[%emt 0:00:30]} Ne7 {[%emt 0:00:30]} 14. Ba2 {[%emt 0:00:30]} Ng6 {[%emt 0:00:30]} 15. Be3 {[%emt 0:00:30]} exd4 {[%emt 0:00:30]} 16. cxd4 {[%emt 0:00:30]} Bb7 {[%emt 0:00:30]} 17. Qc2 {[%emt 0:00:30]} Rfe8 {[%emt 0:00:30]} 18. Nd2 {[%emt 0:00:30] [#]} c5 $1 {[%emt 0:00:30][%mdl 64] Deflection} 19. dxc5 {[%emt 0:00:00]} (19. d5 Rbc8) 19... dxc5 {[%emt 0:00:30]} 20. Bxc5 {[%emt 0:00:00]} (20. Qxc5 $15 Ne5 21. Bd5) 20... Nf4 $1 $17 {[%emt 0:00:30]} 21. f3 {[%emt 0:00:00] Wards off Qg4} Bd4+ {[%emt 0:00:30]} (21... Rbc8 $19 22. Nb3 Ne6) 22. Bxd4 {[%emt 0:00:00]} Qxd4+ {[%emt 0:00:30]} 23. Kh1 {[%emt 0:02:30]} Rbc8 {[%emt 0:00:00][%cal Bb8c8,Bc8c2,Bc2b2][%mdl 32]} 24. Nb3 {[%emt 0:00:00]} Rxc2 {[%emt 0:00:00]} 25. Nxd4 {[%emt 0:01:00]} Rxb2 {[%emt 0:01:30]} 26. g3 {[%emt 0:00:30]} Nh3 {[%emt 0:00:00]} 27. Rfb1 {[%emt 0:00:30]} Rd2 28. Nb3 {[%emt 0:00:30]} Rc2 {[%emt 0:01:30][%cal Oe8e4] Black has more active pieces.} 29. Nd4 {[%emt 0:00:00]} Rd2 {[%emt 0:00:00]} 30. Nb3 {[%emt 0:00:00]} Re2 {[%emt 0:01:00][%cal Oe8e4] ...R8xe4! is the strong threat.} (30... Rf2 $5 {[%cal Re8e4]} 31. Nc5 Rc8 $11) 31. Nc5 {[%emt 0:01:30]} Ng5 $40 {[%emt 0:00:30][%cal Og5f3][%mdl 128] Black has some attack.} 32. Re1 $1 {[%emt 0:00:30]} (32. Nxb7 Nxf3) 32... Rd2 {[%emt 0:00:30][%cal Og5f3]} (32... Rc2 $5 33. Rec1 $8 (33. Nxb7 {leads to mate.} Nxf3) 33... Rd2 $11) 33. Re3 {[%emt 0:00:30] [#]} (33. Nxb7 Nxf3) (33. Red1 $11 Rc2 34. Rdc1 (34. Nxb7 Nxf3)) 33... Rc8 $1 {[%emt 0:00:30]} 34. Nb3 {[%emt 0:00:30]} (34. Nxb7 {gets mated.} Rcc2 35. Bxf7+ Kxf7) 34... Rb2 {[%emt 0:00:30]} 35. Nd4 {[%emt 0:00:30] Dodges Rcc2} Rd2 {[%emt 0:00:30]} 36. Nb3 {[%emt 0:00:30]} Rf2 {[%emt 0:00:30][%cal Oc8c2] ( -> ...Rcc2!)} 37. Nd4 {[%emt 0:00:30] Prevents Rcc2.} g6 {[%emt 0:00:30]} 38. h4 {[%emt 0:00:30]} Nh3 {[%emt 0:00:30] Strongly threatening ...Rd8.} 39. Bb3 {[%emt 0:00:30] [#]} Rd8 $1 {[%emt 0:00:00]} ({Reject} 39... Rd2 $6 40. Ne2 Nf2+ 41. Kg2 $11) 40. Rd1 {[%emt 0:00:00][%mdl 8192]} (40. Ne2 $17) 40... Rb2 {[%emt 0:00:00] Weighted Error Value: White=0.28 (precise) /Black=0.15 (very precise)} 0-1